[Event "Titled Tuesday Blitz June 21 Early 2022"]
[White "Pein, Jonathan"]
[Black "Ovezdurdyyeva, Jemal"]
[WhiteFideId "417092"]
[BlackFideId "14001888"]
[WhiteElo "2140"]
[BlackElo "1946"]
[Result "1-0"]
[Round "05"]
[TimeControl "180+1"]
[Date "2022.06.22"]
[WhiteClock "0:00:07"]
[BlackClock "0:00:02"]

1. e4 {[%clk 0:03:00]}  d6 {[%clk 0:03:00]} 2. Nc3 {[%clk 0:02:45]}  Nf6 {[%clk 0:02:59]} 3. d4 {[%clk 0:02:46]}  g6 {[%clk 0:02:59]} 4. Bg5 {[%clk 0:02:14]}  Bg7 {[%clk 0:02:57]} 5. e5 {[%clk 0:02:14]}  Nfd7 {[%clk 0:02:55]} 6. f4 {[%clk 0:02:14]}  f6 {[%clk 0:02:43]} 7. Bh4 {[%clk 0:01:54]}  dxe5 {[%clk 0:02:24]} 8. dxe5 {[%clk 0:01:45]}  fxe5 {[%clk 0:02:22]} 9. f5 {[%clk 0:01:12]}  Nc6 {[%clk 0:02:08]} 10. Bd3 {[%clk 0:00:43]}  Nf8 {[%clk 0:02:01]} 11. Nf3 {[%clk 0:00:29]}  Bxf5 {[%clk 0:01:48]} 12. O-O {[%clk 0:00:23]}  Bxd3 {[%clk 0:01:21]} 13. cxd3 {[%clk 0:00:24]}  h6 {[%clk 0:01:17]} 14. Qb3 {[%clk 0:00:21]}  Na5 {[%clk 0:00:53]} 15. Qa4+ {[%clk 0:00:17]}  Nc6 {[%clk 0:00:51]} 16. Qb5 {[%clk 0:00:14]}  Qd7 {[%clk 0:00:28]} 17. Ne4 {[%clk 0:00:12]}  Ne6 {[%clk 0:00:20]} 18. Nfd2 {[%clk 0:00:05]}  O-O-O {[%clk 0:00:18]} 19. Nb3 {[%clk 0:00:03]}  a5 {[%clk 0:00:17]} 20. Nbc5 {[%clk 0:00:03]}  Nxc5 {[%clk 0:00:16]} 21. Nxc5 {[%clk 0:00:03]}  Qd4+ {[%clk 0:00:16]} 22. Bf2 {[%clk 0:00:04]}  Qb4 {[%clk 0:00:15]} 23. Qxb4 {[%clk 0:00:03]}  Nxb4 {[%clk 0:00:16]} 24. Ne6 {[%clk 0:00:04]}  Rdg8 {[%clk 0:00:15]} 25. d4 {[%clk 0:00:04]}  exd4 {[%clk 0:00:15]} 26. Nxg7 {[%clk 0:00:04]}  e5 {[%clk 0:00:10]} 27. Ne6 {[%clk 0:00:04]}  Re8 {[%clk 0:00:11]} 28. Nc5 {[%clk 0:00:04]}  b6 {[%clk 0:00:10]} 29. Ne4 {[%clk 0:00:04]}  d3 {[%clk 0:00:09]} 30. a3 {[%clk 0:00:04]}  Nc2 {[%clk 0:00:09]} 31. Rac1 {[%clk 0:00:05]}  Rhf8 {[%clk 0:00:08]} 32. Rfd1 {[%clk 0:00:05]}  Rf4 {[%clk 0:00:08]} 33. Nd2 {[%clk 0:00:02]}  e4 {[%clk 0:00:08]} 34. Bg3 {[%clk 0:00:03]}  Rg4 {[%clk 0:00:08]} 35. Nf1 {[%clk 0:00:02]}  e3 {[%clk 0:00:07]} 36. Rxd3 {[%clk 0:00:03]}  e2 {[%clk 0:00:06]} 37. Rxc2 {[%clk 0:00:03]}  exf1=Q+ {[%clk 0:00:06]} 38. Kxf1 {[%clk 0:00:03]}  h5 {[%clk 0:00:07]} 39. Bf2 {[%clk 0:00:04]}  Rf4 {[%clk 0:00:06]} 40. Re2 {[%clk 0:00:04]}  Ref8 {[%clk 0:00:06]} 41. g3 {[%clk 0:00:05]}  R4f7 {[%clk 0:00:06]} 42. Kg2 {[%clk 0:00:05]}  g5 {[%clk 0:00:06]} 43. Rde3 {[%clk 0:00:06]}  Kb7 {[%clk 0:00:05]} 44. Re7 {[%clk 0:00:06]}  Rf5 {[%clk 0:00:03]} 45. Rc2 {[%clk 0:00:06]}  Rc8 {[%clk 0:00:02]} 46. b4 {[%clk 0:00:06]}  axb4 {[%clk 0:00:02]} 47. axb4 {[%clk 0:00:06]}  Rb5 {[%clk 0:00:02]} 48. Rc4 {[%clk 0:00:07]}  g4 {[%clk 0:00:01]} 49. Ree4 {[%clk 0:00:07]}  Rd5 {[%clk 0:00:01]} 50. Red4 {[%clk 0:00:07]}  Ka6 {[%clk 0:00:02]} 51. Rxd5 {[%clk 0:00:07]} 1-0


[Site "https://www.chess.com"]

[Event "Titled Tuesday Blitz June 21 Early 2022"]
[White "Perez Gormaz, Matias"]
[Black "Leve, Nitai"]
[WhiteFideId "3406342"]
[BlackFideId "2006898"]
[WhiteElo "2341"]
[BlackElo "2144"]
[Result "1/2-1/2"]
[Round "05"]
[TimeControl "180+1"]
[Date "2022.06.22"]
[WhiteClock "0:00:09"]
[BlackClock "0:00:08"]

1. e4 {[%clk 0:03:00]}  c6 {[%clk 0:02:32]} 2. d4 {[%clk 0:02:56]}  d5 {[%clk 0:02:32]} 3. exd5 {[%clk 0:02:57]}  cxd5 {[%clk 0:02:32]} 4. c4 {[%clk 0:02:57]}  Nf6 {[%clk 0:02:33]} 5. Nc3 {[%clk 0:02:58]}  Nc6 {[%clk 0:02:33]} 6. Nf3 {[%clk 0:02:46]}  Be6 {[%clk 0:02:33]} 7. cxd5 {[%clk 0:01:53]}  Nxd5 {[%clk 0:02:33]} 8. Bd3 {[%clk 0:01:52]}  g6 {[%clk 0:02:31]} 9. O-O {[%clk 0:01:50]}  Bg7 {[%clk 0:02:28]} 10. Re1 {[%clk 0:01:50]}  O-O {[%clk 0:02:27]} 11. Be4 {[%clk 0:01:42]}  Ncb4 {[%clk 0:02:15]} 12. h3 {[%clk 0:01:35]}  Rc8 {[%clk 0:02:12]} 13. Bd2 {[%clk 0:01:30]}  h6 {[%clk 0:01:55]} 14. Bxg6 {[%clk 0:01:22]}  Bxh3 {[%clk 0:01:50]} 15. Be4 {[%clk 0:01:18]}  Be6 {[%clk 0:01:48]} 16. a3 {[%clk 0:00:55]}  Nxc3 {[%clk 0:01:44]} 17. bxc3 {[%clk 0:00:56]}  Nd5 {[%clk 0:01:44]} 18. Rc1 {[%clk 0:00:56]}  b5 {[%clk 0:01:33]} 19. Bd3 {[%clk 0:00:50]}  a6 {[%clk 0:01:29]} 20. a4 {[%clk 0:00:47]}  Qd6 {[%clk 0:00:43]} 21. axb5 {[%clk 0:00:46]}  axb5 {[%clk 0:00:44]} 22. Ne5 {[%clk 0:00:38]}  b4 {[%clk 0:00:37]} 23. cxb4 {[%clk 0:00:21]}  Nxb4 {[%clk 0:00:34]} 24. Bb1 {[%clk 0:00:11]}  Qxd4 {[%clk 0:00:22]} 25. Nf3 {[%clk 0:00:11]}  Qb2 {[%clk 0:00:16]} 26. Rxc8 {[%clk 0:00:10]}  Rxc8 {[%clk 0:00:15]} 27. Qe2 {[%clk 0:00:10]}  Nd5 {[%clk 0:00:12]} 28. Qe4 {[%clk 0:00:09]}  Nf6 {[%clk 0:00:12]} 29. Qh4 {[%clk 0:00:06]}  Ba2 {[%clk 0:00:10]} 30. Bxa2 {[%clk 0:00:05]}  Qxa2 {[%clk 0:00:11]} 31. Bxh6 {[%clk 0:00:06]}  Qc4 {[%clk 0:00:10]} 32. Qg5 {[%clk 0:00:05]}  Qg4 {[%clk 0:00:07]} 33. Bxg7 {[%clk 0:00:05]}  Qxg5 {[%clk 0:00:07]} 34. Nxg5 {[%clk 0:00:06]}  Kxg7 {[%clk 0:00:08]} 35. Rxe7 {[%clk 0:00:06]}  Ng4 {[%clk 0:00:07]} 36. Nf3 {[%clk 0:00:04]}  Kf6 {[%clk 0:00:07]} 37. Re1 {[%clk 0:00:03]}  Rc2 {[%clk 0:00:06]} 38. Rf1 {[%clk 0:00:04]}  Kg6 {[%clk 0:00:05]} 39. Nd4 {[%clk 0:00:02]}  Rd2 {[%clk 0:00:04]} 40. Nf3 {[%clk 0:00:03]}  Rc2 {[%clk 0:00:04]} 41. g3 {[%clk 0:00:03]}  f5 {[%clk 0:00:04]} 42. Nh4+ {[%clk 0:00:03]}  Kg5 {[%clk 0:00:03]} 43. Ng2 {[%clk 0:00:04]}  Ra2 {[%clk 0:00:03]} 44. Nf4 {[%clk 0:00:04]}  Ne5 {[%clk 0:00:03]} 45. Kg2 {[%clk 0:00:04]}  Ra3 {[%clk 0:00:02]} 46. Re1 {[%clk 0:00:04]}  Ng4 {[%clk 0:00:02]} 47. Re6 {[%clk 0:00:04]}  Nf6 {[%clk 0:00:02]} 48. Rb6 {[%clk 0:00:04]}  Ra2 {[%clk 0:00:02]} 49. Ne6+ {[%clk 0:00:03]}  Kg6 {[%clk 0:00:02]} 50. Nf4+ {[%clk 0:00:04]}  Kg7 {[%clk 0:00:02]} 51. Ne6+ {[%clk 0:00:04]}  Kf7 {[%clk 0:00:01]} 52. Nd4 {[%clk 0:00:05]}  Ne4 {[%clk 0:00:01]} 53. Kg1 {[%clk 0:00:03]}  Rxf2 {[%clk 0:00:01]} 54. Rb7+ {[%clk 0:00:03]}  Kf6 {[%clk 0:00:01]} 55. Rb6+ {[%clk 0:00:04]}  Ke5 {[%clk 0:00:02]} 56. Nc6+ {[%clk 0:00:04]}  Kd5 {[%clk 0:00:02]} 57. Ne7+ {[%clk 0:00:05]}  Ke5 {[%clk 0:00:02]} 58. Ng6+ {[%clk 0:00:05]}  Kd4 {[%clk 0:00:02]} 59. Nf4 {[%clk 0:00:05]}  Rc2 {[%clk 0:00:02]} 60. Rb4+ {[%clk 0:00:05]}  Ke3 {[%clk 0:00:03]} 61. Rb3+ {[%clk 0:00:05]}  Rc3 {[%clk 0:00:03]} 62. Rxc3+ {[%clk 0:00:05]}  Nxc3 {[%clk 0:00:04]} 63. Kg2 {[%clk 0:00:06]}  Ne4 {[%clk 0:00:04]} 64. Nd5+ {[%clk 0:00:06]}  Kd4 {[%clk 0:00:04]} 65. Ne7 {[%clk 0:00:05]}  Ke5 {[%clk 0:00:05]} 66. Ng6+ {[%clk 0:00:05]}  Kf6 {[%clk 0:00:05]} 67. Nf4 {[%clk 0:00:05]}  Kg5 {[%clk 0:00:05]} 68. Kf3 {[%clk 0:00:06]}  Nf6 {[%clk 0:00:05]} 69. Ne6+ {[%clk 0:00:06]}  Kg6 {[%clk 0:00:06]} 70. Nd4 {[%clk 0:00:07]}  Nh5 {[%clk 0:00:06]} 71. Ne6 {[%clk 0:00:06]}  Nxg3 {[%clk 0:00:06]} 72. Kxg3 {[%clk 0:00:06]}  f4+ {[%clk 0:00:06]} 73. Kf3 {[%clk 0:00:06]}  Kf6 {[%clk 0:00:06]} 74. Nd4 {[%clk 0:00:07]}  Kg7 {[%clk 0:00:07]} 75. Ne2 {[%clk 0:00:08]}  Kf8 {[%clk 0:00:08]} 76. Nxf4 {[%clk 0:00:09]} 1/2-1/2


[Site "https://www.chess.com"]

[Event "Titled Tuesday Blitz June 21 Early 2022"]
[White "Petrova, Irina"]
[Black "Maltsevskaya, Aleksandra"]
[WhiteFideId "14124122"]
[BlackFideId "24174041"]
[WhiteElo "1993"]
[BlackElo "2243"]
[Result "1-0"]
[Round "05"]
[TimeControl "180+1"]
[Date "2022.06.22"]
[WhiteClock "0:00:03"]
[BlackClock "0:00:03"]

1. e4 {[%clk 0:03:00]}  c5 {[%clk 0:02:03]} 2. Nf3 {[%clk 0:03:00]}  e6 {[%clk 0:02:03]} 3. b3 {[%clk 0:03:00]}  Nc6 {[%clk 0:02:02]} 4. Bb2 {[%clk 0:02:58]}  b6 {[%clk 0:02:03]} 5. c3 {[%clk 0:02:51]}  Bb7 {[%clk 0:01:39]} 6. Bd3 {[%clk 0:02:51]}  Nf6 {[%clk 0:01:36]} 7. O-O {[%clk 0:02:49]}  d5 {[%clk 0:01:35]} 8. e5 {[%clk 0:02:38]}  Nd7 {[%clk 0:01:32]} 9. Re1 {[%clk 0:02:38]}  Qc7 {[%clk 0:01:31]} 10. Qe2 {[%clk 0:02:38]}  g5 {[%clk 0:01:30]} 11. Bb5 {[%clk 0:02:14]}  g4 {[%clk 0:01:27]} 12. Nh4 {[%clk 0:02:12]}  Be7 {[%clk 0:01:23]} 13. Qxg4 {[%clk 0:02:01]}  Ndxe5 {[%clk 0:01:17]} 14. Bxc6+ {[%clk 0:01:47]}  Nxc6 {[%clk 0:01:06]} 15. d4 {[%clk 0:01:45]}  O-O-O {[%clk 0:01:04]} 16. Nd2 {[%clk 0:01:43]}  Rhg8 {[%clk 0:01:03]} 17. Qh3 {[%clk 0:01:41]}  Kb8 {[%clk 0:00:55]} 18. Nhf3 {[%clk 0:01:38]}  Rg7 {[%clk 0:00:55]} 19. dxc5 {[%clk 0:01:28]}  bxc5 {[%clk 0:00:51]} 20. b4 {[%clk 0:01:17]}  c4 {[%clk 0:00:43]} 21. b5 {[%clk 0:01:13]}  Na5 {[%clk 0:00:39]} 22. Nd4 {[%clk 0:01:07]}  Rdg8 {[%clk 0:00:35]} 23. g3 {[%clk 0:01:06]}  e5 {[%clk 0:00:30]} 24. Nf5 {[%clk 0:01:04]}  Bc8 {[%clk 0:00:30]} 25. Nf3 {[%clk 0:00:51]}  f6 {[%clk 0:00:21]} 26. Rad1 {[%clk 0:00:39]}  d4 {[%clk 0:00:11]} 27. cxd4 {[%clk 0:00:37]}  c3 {[%clk 0:00:12]} 28. Rc1 {[%clk 0:00:33]}  exd4 {[%clk 0:00:10]} 29. N3xd4 {[%clk 0:00:33]}  Bb4 {[%clk 0:00:09]} 30. Ba1 {[%clk 0:00:18]}  Rg5 {[%clk 0:00:03]} 31. Qh4 {[%clk 0:00:12]}  Bxf5 {[%clk 0:00:03]} 32. Nxf5 {[%clk 0:00:13]}  Bc5 {[%clk 0:00:03]} 33. Ne3 {[%clk 0:00:12]}  Bxe3 {[%clk 0:00:03]} 34. Rxe3 {[%clk 0:00:12]}  Rg4 {[%clk 0:00:03]} 35. Qh5 {[%clk 0:00:12]}  f5 {[%clk 0:00:04]} 36. Qxf5 {[%clk 0:00:12]}  Nc4 {[%clk 0:00:03]} 37. Re4 {[%clk 0:00:09]}  Nd6 {[%clk 0:00:03]} 38. Qxg4 {[%clk 0:00:08]}  Rxg4 {[%clk 0:00:02]} 39. Rxg4 {[%clk 0:00:09]}  Nxb5 {[%clk 0:00:03]} 40. a4 {[%clk 0:00:09]}  Nd6 {[%clk 0:00:02]} 41. Rxc3 {[%clk 0:00:08]}  Qe7 {[%clk 0:00:02]} 42. Rb4+ {[%clk 0:00:08]}  Ka8 {[%clk 0:00:01]} 43. Rb1 {[%clk 0:00:08]}  Qe6 {[%clk 0:00:01]} 44. Rcc1 {[%clk 0:00:08]}  a6 {[%clk 0:00:02]} 45. Bd4 {[%clk 0:00:08]}  Qg6 {[%clk 0:00:02]} 46. Be3 {[%clk 0:00:06]}  Qe4 {[%clk 0:00:02]} 47. Bf4 {[%clk 0:00:06]}  Nc4 {[%clk 0:00:02]} 48. Kf1 {[%clk 0:00:04]}  Qc6 {[%clk 0:00:03]} 49. Kg1 {[%clk 0:00:04]}  Qd5 {[%clk 0:00:03]} 50. Be3 {[%clk 0:00:04]}  Ne5 {[%clk 0:00:03]} 51. Rc8# {[%clk 0:00:03]} 1-0


[Site "https://www.chess.com"]

[Event "Titled Tuesday Blitz June 21 Early 2022"]
[White "Pham, Le Thao Nguyen"]
[Black "Nguyen, Quoc Hy"]
[WhiteFideId "12401226"]
[BlackFideId "12410853"]
[WhiteElo "2282"]
[BlackElo "1938"]
[Result "1/2-1/2"]
[Round "05"]
[TimeControl "180+1"]
[Date "2022.06.22"]
[WhiteClock "0:00:09"]
[BlackClock "0:00:06"]

1. d4 {[%clk 0:03:00]}  d5 {[%clk 0:02:59]} 2. c4 {[%clk 0:02:59]}  c6 {[%clk 0:02:58]} 3. Nf3 {[%clk 0:02:59]}  e6 {[%clk 0:02:58]} 4. e3 {[%clk 0:02:58]}  f5 {[%clk 0:02:55]} 5. Be2 {[%clk 0:02:50]}  Nf6 {[%clk 0:02:55]} 6. O-O {[%clk 0:02:49]}  Bd6 {[%clk 0:02:55]} 7. b3 {[%clk 0:02:49]}  Qe7 {[%clk 0:02:55]} 8. a4 {[%clk 0:02:48]}  O-O {[%clk 0:02:55]} 9. Ba3 {[%clk 0:02:47]}  Bxa3 {[%clk 0:02:55]} 10. Nxa3 {[%clk 0:02:48]}  Bd7 {[%clk 0:02:55]} 11. Nc2 {[%clk 0:02:06]}  Be8 {[%clk 0:02:28]} 12. Ne5 {[%clk 0:02:01]}  Nbd7 {[%clk 0:02:24]} 13. Nd3 {[%clk 0:02:00]}  Bf7 {[%clk 0:02:06]} 14. f4 {[%clk 0:01:55]}  Ne4 {[%clk 0:02:02]} 15. Bf3 {[%clk 0:01:53]}  Rfd8 {[%clk 0:01:59]} 16. Qe1 {[%clk 0:01:27]}  dxc4 {[%clk 0:01:36]} 17. bxc4 {[%clk 0:01:26]}  e5 {[%clk 0:01:36]} 18. Bxe4 {[%clk 0:01:09]}  fxe4 {[%clk 0:01:37]} 19. Nxe5 {[%clk 0:00:41]}  Nxe5 {[%clk 0:01:37]} 20. fxe5 {[%clk 0:00:41]}  Bxc4 {[%clk 0:01:37]} 21. Rf4 {[%clk 0:00:39]}  Rf8 {[%clk 0:01:36]} 22. Qc3 {[%clk 0:00:24]}  Bd3 {[%clk 0:00:35]} 23. Nb4 {[%clk 0:00:22]}  Rxf4 {[%clk 0:00:35]} 24. exf4 {[%clk 0:00:21]}  Rf8 {[%clk 0:00:23]} 25. Nxd3 {[%clk 0:00:20]}  exd3 {[%clk 0:00:23]} 26. Qxd3 {[%clk 0:00:19]}  Rxf4 {[%clk 0:00:22]} 27. Re1 {[%clk 0:00:16]}  Qe6 {[%clk 0:00:21]} 28. h3 {[%clk 0:00:15]}  h6 {[%clk 0:00:20]} 29. Qe3 {[%clk 0:00:14]}  Rf8 {[%clk 0:00:20]} 30. Rb1 {[%clk 0:00:13]}  Rf7 {[%clk 0:00:19]} 31. Qb3 {[%clk 0:00:11]}  Qxb3 {[%clk 0:00:19]} 32. Rxb3 {[%clk 0:00:12]}  Rd7 {[%clk 0:00:19]} 33. Rb4 {[%clk 0:00:13]}  Kf7 {[%clk 0:00:19]} 34. Kf2 {[%clk 0:00:13]}  Ke6 {[%clk 0:00:19]} 35. Ke3 {[%clk 0:00:13]}  c5 {[%clk 0:00:15]} 36. dxc5 {[%clk 0:00:12]}  Kxe5 {[%clk 0:00:15]} 37. Re4+ {[%clk 0:00:11]}  Kd5 {[%clk 0:00:14]} 38. Rd4+ {[%clk 0:00:12]}  Kc6 {[%clk 0:00:14]} 39. Rxd7 {[%clk 0:00:12]}  Kxd7 {[%clk 0:00:15]} 40. Ke4 {[%clk 0:00:11]}  Kc6 {[%clk 0:00:13]} 41. Kd4 {[%clk 0:00:11]}  Kc7 {[%clk 0:00:06]} 42. Kd5 {[%clk 0:00:11]}  Kd7 {[%clk 0:00:06]} 43. h4 {[%clk 0:00:10]}  h5 {[%clk 0:00:05]} 44. g3 {[%clk 0:00:10]}  a6 {[%clk 0:00:02]} 45. Kd4 {[%clk 0:00:07]}  Kc6 {[%clk 0:00:02]} 46. Kc4 {[%clk 0:00:08]}  Kc7 {[%clk 0:00:03]} 47. Kd4 {[%clk 0:00:08]}  Kd7 {[%clk 0:00:03]} 48. Kd5 {[%clk 0:00:08]}  Kc7 {[%clk 0:00:04]} 49. Kd4 {[%clk 0:00:08]}  Kc6 {[%clk 0:00:04]} 50. Kc4 {[%clk 0:00:09]}  Kc7 {[%clk 0:00:04]} 51. Kd5 {[%clk 0:00:09]}  Kd7 {[%clk 0:00:05]} 52. Kd4 {[%clk 0:00:09]}  Kc6 {[%clk 0:00:06]} 1/2-1/2


[Site "https://www.chess.com"]

[Event "Titled Tuesday Blitz June 21 Early 2022"]
[White "Piesik, Piotr"]
[Black "Eggleston, Thomas A"]
[WhiteFideId "1136194"]
[BlackFideId "412139"]
[WhiteElo "2247"]
[BlackElo "2174"]
[Result "1-0"]
[Round "05"]
[TimeControl "180+1"]
[Date "2022.06.22"]
[WhiteClock "0:01:35"]
[BlackClock "0:01:14"]

1. Nf3 {[%clk 0:02:57]}  e6 {[%clk 0:02:58]} 2. g3 {[%clk 0:02:57]}  f5 {[%clk 0:02:57]} 3. Bg2 {[%clk 0:02:58]}  Nf6 {[%clk 0:02:58]} 4. O-O {[%clk 0:02:59]}  Be7 {[%clk 0:02:58]} 5. d3 {[%clk 0:02:59]}  O-O {[%clk 0:02:57]} 6. c4 {[%clk 0:02:59]}  d6 {[%clk 0:02:56]} 7. Nc3 {[%clk 0:03:00]}  Kh8 {[%clk 0:02:54]} 8. d4 {[%clk 0:02:57]}  Ne4 {[%clk 0:02:52]} 9. Qc2 {[%clk 0:02:55]}  Nxc3 {[%clk 0:02:44]} 10. bxc3 {[%clk 0:02:56]}  Bf6 {[%clk 0:02:38]} 11. e4 {[%clk 0:02:53]}  fxe4 {[%clk 0:02:34]} 12. Qxe4 {[%clk 0:02:54]}  d5 {[%clk 0:02:35]} 13. Qe2 {[%clk 0:02:52]}  c5 {[%clk 0:02:29]} 14. Be3 {[%clk 0:02:45]}  Nc6 {[%clk 0:02:29]} 15. Rfd1 {[%clk 0:02:44]}  Qa5 {[%clk 0:02:16]} 16. dxc5 {[%clk 0:02:39]}  Bxc3 {[%clk 0:02:11]} 17. Rab1 {[%clk 0:02:31]}  dxc4 {[%clk 0:01:52]} 18. Qxc4 {[%clk 0:02:32]}  Bf6 {[%clk 0:01:50]} 19. Ng5 {[%clk 0:02:15]}  Ne5 {[%clk 0:01:31]} 20. Qe4 {[%clk 0:01:36]}  Qc7 {[%clk 0:01:14]} 21. Qxh7# {[%clk 0:01:35]} 1-0


[Site "https://www.chess.com"]

[Event "Titled Tuesday Blitz June 21 Early 2022"]
[White "Pranesh M"]
[Black "Alexiadis, Hristos"]
[WhiteFideId "35028600"]
[BlackFideId "4249623"]
[WhiteElo "1902"]
[BlackElo "2416"]
[Result "1-0"]
[Round "05"]
[TimeControl "180+1"]
[Date "2022.06.21"]
[WhiteClock "0:01:41"]
[BlackClock "0:01:59"]

1. e4 {[%clk 0:03:00]}  e5 {[%clk 0:02:57]} 2. Nf3 {[%clk 0:03:01]}  Nc6 {[%clk 0:02:58]} 3. Bc4 {[%clk 0:03:01]}  Bc5 {[%clk 0:02:58]} 4. c3 {[%clk 0:03:01]}  Nf6 {[%clk 0:02:58]} 5. d4 {[%clk 0:03:01]}  exd4 {[%clk 0:02:56]} 6. e5 {[%clk 0:03:02]}  d5 {[%clk 0:02:55]} 7. Bb5 {[%clk 0:03:02]}  Ne4 {[%clk 0:02:55]} 8. cxd4 {[%clk 0:03:03]}  Bb6 {[%clk 0:02:56]} 9. Nc3 {[%clk 0:03:03]}  O-O {[%clk 0:02:55]} 10. O-O {[%clk 0:03:03]}  Bg4 {[%clk 0:02:52]} 11. Be3 {[%clk 0:03:04]}  f6 {[%clk 0:02:52]} 12. exf6 {[%clk 0:03:00]}  Rxf6 {[%clk 0:02:47]} 13. Be2 {[%clk 0:02:56]}  Nxc3 {[%clk 0:02:35]} 14. bxc3 {[%clk 0:02:55]}  Qf8 {[%clk 0:02:32]} 15. h3 {[%clk 0:02:55]}  Bf5 {[%clk 0:02:31]} 16. a4 {[%clk 0:02:55]}  Re8 {[%clk 0:02:31]} 17. Qb3 {[%clk 0:02:52]}  Na5 {[%clk 0:02:14]} 18. Qxd5+ {[%clk 0:02:47]}  Be6 {[%clk 0:02:13]} 19. Qh5 {[%clk 0:02:48]}  Nc4 {[%clk 0:02:10]} 20. Ng5 {[%clk 0:01:48]}  Rh6 {[%clk 0:01:58]} 21. Nxe6 {[%clk 0:01:43]}  Rexe6 {[%clk 0:01:59]} 22. Bxh6 {[%clk 0:01:41]} 1-0


[Site "https://www.chess.com"]

[Event "Titled Tuesday Blitz June 21 Early 2022"]
[White "Prokofiev, Valentyn"]
[Black "Nesterov, Arseniy"]
[WhiteFideId "14160161"]
[BlackFideId "24198455"]
[WhiteElo "2142"]
[BlackElo "2489"]
[Result "0-1"]
[Round "05"]
[TimeControl "180+1"]
[Date "2022.06.21"]
[WhiteClock "0:02:36"]
[BlackClock "0:02:14"]

1. d4 {[%clk 0:03:00]}  d5 {[%clk 0:02:57]} 2. c4 {[%clk 0:03:01]}  e6 {[%clk 0:02:57]} 3. Nf3 {[%clk 0:03:01]}  Nf6 {[%clk 0:02:57]} 4. e3 {[%clk 0:03:02]}  c5 {[%clk 0:02:55]} 5. cxd5 {[%clk 0:03:01]}  exd5 {[%clk 0:02:56]} 6. b3 {[%clk 0:03:00]}  Nc6 {[%clk 0:02:54]} 7. Bb2 {[%clk 0:03:00]}  cxd4 {[%clk 0:02:45]} 8. Nxd4 {[%clk 0:03:00]}  Bb4+ {[%clk 0:02:45]} 9. Nd2 {[%clk 0:03:01]}  Nxd4 {[%clk 0:02:37]} 10. Bxd4 {[%clk 0:02:54]}  Ne4 {[%clk 0:02:35]} 11. Bb5+ {[%clk 0:02:42]}  Bd7 {[%clk 0:02:34]} 12. Bxd7+ {[%clk 0:02:42]}  Qxd7 {[%clk 0:02:34]} 13. O-O {[%clk 0:02:43]}  Nxd2 {[%clk 0:02:33]} 14. Re1 {[%clk 0:02:40]}  Ne4 {[%clk 0:02:30]} 15. Bxg7 {[%clk 0:02:35]}  Rg8 {[%clk 0:02:20]} 16. Qd4 {[%clk 0:02:36]}  Bc3 {[%clk 0:02:14]} 0-1


[Site "https://www.chess.com"]

[Event "Titled Tuesday Blitz June 21 Early 2022"]
[White "Reprintsev, Alexander"]
[Black "Csonka, Balazs"]
[WhiteFideId "14100541"]
[BlackFideId "742910"]
[WhiteElo "2108"]
[BlackElo "2404"]
[Result "0-1"]
[Round "05"]
[TimeControl "180+1"]
[Date "2022.06.22"]
[WhiteClock "0:00:02"]
[BlackClock "0:00:03"]

1. e4 {[%clk 0:02:56]}  c5 {[%clk 0:02:57]} 2. b3 {[%clk 0:02:55]}  g6 {[%clk 0:02:51]} 3. Bb2 {[%clk 0:02:55]}  Nf6 {[%clk 0:02:51]} 4. e5 {[%clk 0:02:55]}  Nd5 {[%clk 0:02:50]} 5. Nc3 {[%clk 0:02:56]}  Nxc3 {[%clk 0:02:48]} 6. dxc3 {[%clk 0:02:57]}  Nc6 {[%clk 0:02:45]} 7. Qd5 {[%clk 0:02:56]}  e6 {[%clk 0:02:39]} 8. Qe4 {[%clk 0:02:55]}  Bg7 {[%clk 0:02:20]} 9. f4 {[%clk 0:02:42]}  Qa5 {[%clk 0:01:55]} 10. Qe3 {[%clk 0:01:56]}  O-O {[%clk 0:01:47]} 11. a4 {[%clk 0:01:48]}  f6 {[%clk 0:01:08]} 12. exf6 {[%clk 0:01:45]}  Bxf6 {[%clk 0:01:05]} 13. O-O-O {[%clk 0:01:42]}  d5 {[%clk 0:01:04]} 14. Bb5 {[%clk 0:01:38]}  Bd7 {[%clk 0:00:56]} 15. Nf3 {[%clk 0:01:38]}  Qb6 {[%clk 0:00:50]} 16. h4 {[%clk 0:01:24]}  Rae8 {[%clk 0:00:42]} 17. h5 {[%clk 0:01:23]}  a6 {[%clk 0:00:25]} 18. Bxc6 {[%clk 0:01:22]}  Bxc6 {[%clk 0:00:24]} 19. hxg6 {[%clk 0:01:22]}  hxg6 {[%clk 0:00:25]} 20. Ne5 {[%clk 0:01:22]}  Qc7 {[%clk 0:00:18]} 21. Nxg6 {[%clk 0:01:12]}  Rf7 {[%clk 0:00:18]} 22. Ne5 {[%clk 0:01:07]}  Rg7 {[%clk 0:00:17]} 23. Qh3 {[%clk 0:01:06]}  Rh7 {[%clk 0:00:17]} 24. Qd3 {[%clk 0:00:57]}  Qg7 {[%clk 0:00:08]} 25. Ng4 {[%clk 0:00:38]}  Rf8 {[%clk 0:00:03]} 26. Rxh7 {[%clk 0:00:36]}  Qxh7 {[%clk 0:00:03]} 27. Qg3 {[%clk 0:00:33]}  Bg7 {[%clk 0:00:02]} 28. a5 {[%clk 0:00:28]}  c4 {[%clk 0:00:02]} 29. Ba3 {[%clk 0:00:26]}  Rf5 {[%clk 0:00:01]} 30. Ne3 {[%clk 0:00:24]}  Rf6 {[%clk 0:00:01]} 31. bxc4 {[%clk 0:00:21]}  Qe4 {[%clk 0:00:02]} 32. cxd5 {[%clk 0:00:18]}  exd5 {[%clk 0:00:03]} 33. Rd4 {[%clk 0:00:16]}  Qe6 {[%clk 0:00:02]} 34. f5 {[%clk 0:00:15]}  Qf7 {[%clk 0:00:03]} 35. Qb8+ {[%clk 0:00:13]}  Kh7 {[%clk 0:00:03]} 36. Rh4+ {[%clk 0:00:12]}  Rh6 {[%clk 0:00:03]} 37. Qh2 {[%clk 0:00:08]}  d4 {[%clk 0:00:03]} 38. cxd4 {[%clk 0:00:07]}  Qa2 {[%clk 0:00:03]} 39. Bb2 {[%clk 0:00:06]}  Qxa5 {[%clk 0:00:02]} 40. c3 {[%clk 0:00:06]}  Qb5 {[%clk 0:00:02]} 41. Ng4 {[%clk 0:00:03]}  Qf1+ {[%clk 0:00:02]} 42. Kc2 {[%clk 0:00:04]}  Qe2+ {[%clk 0:00:02]} 43. Kb1 {[%clk 0:00:03]}  Qd1+ {[%clk 0:00:01]} 44. Ka2 {[%clk 0:00:03]}  Bd5+ {[%clk 0:00:02]} 45. c4 {[%clk 0:00:02]}  Bxc4+ {[%clk 0:00:02]} 46. Ka3 {[%clk 0:00:02]}  Qb3# {[%clk 0:00:03]} 0-1


[Site "https://www.chess.com"]